fUST/lending_fUST_20250801
["ID","MTS","AMOUNT","RATE_DAILY","PERIOD"]
[376482114,1753992661541,-484.2,0.00020821,2]
[376482115,1753992661551,-646.0,0.00020822,2]
[376482116,1753992661560,-244.637201,0.00020822,2]
[376482117,1753992661569,-156.332005,0.00020859,2]
[376482118,1753992661579,-503.65022164,0.00020868,2]
[376482119,1753992661588,-1500.0,0.00020868,2]
[376482120,1753992661597,-1500.0,0.00020868,2]
[376482121,1753992661606,-1500.0,0.00020868,2]
[376482122,1753992661615,-1500.0,0.00020868,2]
[376482123,1753992661624,-261.90525871,0.00020868,2]
[376482124,1753992661633,-151.0,0.00020873,2]
[376482125,1753992661642,-151.79701127,0.0002088,2]
[376482126,1753992661651,-1680.0,0.00020893,2]
[376482127,1753992661661,-9711.88079616,0.00020934,4]
[376482128,1753992661672,-151.0,0.00020935,2]
[376482129,1753992661681,-204.362749,0.00020935,2]
[376482130,1753992661690,-204.362749,0.00020935,2]
[376482131,1753992661700,-151.0,0.00020935,2]
[376482132,1753992661709,-151.0,0.00020935,2]
[376482133,1753992661719,-150.803326,0.0002095,3]
[376482134,1753992661729,-260.0,0.00020993,2]
[376482135,1753992661738,-151.0,0.00020995,2]
[376482136,1753992661748,-151.0,0.00020995,2]
[376482137,1753992661757,-388.695195,0.00020995,2]
[376482138,1753992661767,-388.695195,0.00020995,2]
[376482139,1753992661777,-4009.75602669,0.00020995,2]
[376482140,1753992661786,-53804.55028232,0.00021,2]
[376482141,1753992661794,-2402.0,0.00021,2]
[376482142,1753992661803,-8057.71660867,0.00021,5]
[376482143,1753992662084,-512.676416,0.000199,2]
[376482144,1753992662093,-512.676416,0.00020245,2]
[376482145,1753992662103,-460.0,0.00020273,2]
[376482146,1753992662112,-460.0,0.00020547,2]
[376482147,1753992662122,-512.676416,0.00020547,2]
[376482148,1753992662131,-512.676416,0.00020762,2]
[376482149,1753992662140,-1942.28339133,0.00021,5]
[376482150,1753992662150,-151.0,0.00021,2]
[376482151,1753992662159,-151.0,0.00021,2]
[376482152,1753992662168,-151.0,0.00021,2]
[376482153,1753992662178,-151.0,0.00021,2]
[376482154,1753992662186,-179.083522,0.00021,2]
[376482155,1753992662196,-151.0,0.00021,2]
[376482156,1753992662205,-151.0,0.00021,2]
[376482157,1753992662214,-151.0,0.00021,2]
[376482158,1753992662223,-151.0,0.00021,2]
[376482159,1753992662233,-151.0,0.00021,2]
[376482160,1753992662242,-151.0,0.00021,2]
[376482161,1753992662251,-3000.0,0.00021,2]
[376482162,1753992662260,-151.0,0.00021,2]
[376482163,1753992662270,-151.0,0.00021,2]
[376482164,1753992662279,-151.0,0.00021,2]
[376482165,1753992662289,-151.0,0.00021,2]
[376482166,1753992662306,-151.0,0.00021,2]
[376482167,1753992662324,-151.0,0.00021,2]
[376482168,1753992662336,-151.0,0.00021,2]
[376482169,1753992662352,-151.0,0.00021,2]
[376482170,1753992662368,-207.968851,0.00021,2]
[376482171,1753992662384,-207.968851,0.00021,2]
[376482172,1753992662400,-151.968557,0.00021,2]
[376482173,1753992662414,-151.0,0.00021,2]
[376482174,1753992662429,-151.0,0.00021,2]
[376482175,1753992662444,-151.0,0.00021,2]
[376482176,1753992662459,-151.0,0.00021004,2]
[376482177,1753992662472,-151.0,0.00021004,2]
[376482178,1753992662486,-3000.0,0.0002101,2]
[376482179,1753992662500,-3000.0,0.0002102,2]
[376482180,1753992662516,-3000.0,0.0002103,2]
[376482181,1753992662532,-3000.0,0.0002104,2]
[376482182,1753992662550,-3000.0,0.0002105,2]
[376482183,1753992662563,-3000.0,0.0002106,2]
[376482184,1753992662575,-600.0,0.00021068,2]
[376482185,1753992662591,-1000.0,0.00021068,2]
[376482186,1753992662606,-151.183589,0.0002107,2]
[376482187,1753992662618,-3000.0,0.0002107,2]
[376482188,1753992662631,-501.69513984,0.00021073,2]
[376482189,1753992662643,-151.0,0.00021073,2]
[376482190,1753992662655,-151.0,0.0002108,2]
[376482191,1753992662668,-151.0,0.0002108,2]
[376482192,1753992662681,-151.0,0.0002108,2]
[376482193,1753992662694,-338.405847,0.0002108,2]
[376482194,1753992662706,-338.405847,0.0002108,2]
[376482195,1753992662719,-3000.0,0.0002108,2]
[376482196,1753992662732,-3000.0,0.0002109,2]
[376482197,1753992662744,-151.0,0.00021095,2]
[376482198,1753992662757,-151.0,0.00021095,2]
[376482199,1753992662770,-151.0,0.00021095,2]
[376482200,1753992662782,-151.0,0.00021095,2]
[376482201,1753992662794,-151.0,0.00021095,2]
[376482202,1753992662807,-151.0,0.00021095,2]
[376482203,1753992662820,-151.0,0.00021095,2]
[376482204,1753992662832,-151.0,0.00021095,2]
[376482205,1753992662844,-151.0,0.00021095,2]
[376482206,1753992662858,-204.411488,0.00021095,2]
[376482207,1753992662870,-151.0,0.00021095,2]
[376482208,1753992662884,-244.637201,0.00021095,2]
[376482209,1753992662898,-388.695195,0.00021095,2]
[376482210,1753992662910,-388.695195,0.00021095,2]
[376482211,1753992662925,-151.0,0.00021095,2]
[376482212,1753992662938,-151.0,0.00021095,2]
[376482213,1753992662952,-151.0,0.00021095,2]
[376482214,1753992662963,-151.0,0.00021095,2]
[376482215,1753992662973,-151.0,0.00021095,2]
[376482216,1753992662983,-1261.292581,0.00021095,2]
[376482217,1753992662993,-151.0,0.00021095,2]
[376482218,1753992663003,-153.013182,0.00021095,2]
[376482219,1753992663012,-151.0,0.00021095,2]
[376482220,1753992663022,-518.28,0.00021095,2]
[376482221,1753992663031,-508.1,0.00021095,2]
[376482222,1753992663040,-151.0,0.00021095,2]
[376482223,1753992663050,-151.0,0.00021095,2]
[376482224,1753992663060,-151.0,0.00021095,2]
[376482225,1753992663070,-151.0,0.00021095,2]
[376482226,1753992663080,-151.0,0.00021095,2]
[376482227,1753992663090,-207.968851,0.00021095,2]
[376482228,1753992663100,-207.968851,0.00021095,2]
[376482229,1753992663110,-460.0,0.00021095,2]
[376482230,1753992663120,-834.81,0.00021095,2]
[376482231,1753992663131,-543.74,0.00021095,2]
[376482232,1753992663141,-460.0,0.00021095,2]
[376482233,1753992663151,-460.0,0.00021095,2]
[376482234,1753992663161,-640.74,0.00021095,2]
[376482235,1753992663172,-460.0,0.00021095,2]
[376482236,1753992663183,-478.96,0.00021095,2]
[376482237,1753992663192,-696.25,0.00021095,2]
[376482238,1753992663202,-513.77,0.00021095,2]
[376482239,1753992663212,-1007.37,0.00021095,2]
[376482240,1753992663222,-460.0,0.00021095,2]
[376482241,1753992663231,-543.8,0.00021095,2]
[376482242,1753992663241,-487.29,0.00021095,2]
[376482243,1753992663250,-151.0,0.00021095,2]
[376482244,1753992663260,-460.0,0.00021095,2]
[376482245,1753992663269,-460.0,0.00021095,2]
[376482246,1753992663279,-151.0,0.00021095,2]
[376482247,1753992663288,-460.0,0.00021095,2]
[376482248,1753992663298,-179.844671,0.00021095,2]
[376482249,1753992663308,-460.0,0.00021095,2]
[376482250,1753992663317,-179.844671,0.00021095,2]
[376482251,1753992663327,-663.86,0.00021095,2]
[376482252,1753992663337,-151.0,0.00021095,2]
[376482253,1753992663347,-151.0,0.00021095,2]
[376482254,1753992663356,-460.0,0.00021095,2]
[376482255,1753992663366,-460.0,0.00021095,2]
[376482256,1753992663375,-484.16,0.00021095,2]
[376482257,1753992663385,-691.12,0.00021095,2]
[376482258,1753992663653,-460.0,0.00021095,2]
[376482259,1753992663673,-518.8,0.00021095,2]
[376482260,1753992663687,-460.0,0.00021095,2]
[376482261,1753992663697,-460.0,0.00021095,2]
[376482262,1753992663707,-511.93,0.00021095,2]
[376482263,1753992663717,-565.81,0.00021095,2]
[376482264,1753992663726,-460.0,0.00021095,2]
[376482265,1753992663735,-460.0,0.00021095,2]
[376482266,1753992663746,-460.0,0.00021095,2]
[376482267,1753992663756,-460.0,0.00021095,2]
[376482268,1753992663766,-633.78,0.00021095,2]
[376482269,1753992663776,-460.0,0.00021095,2]
[376482270,1753992663785,-468.88198816,0.00021095,2]
[376482271,1753992663795,-460.0,0.00021095,2]
[376482272,1753992663804,-3242.99,0.00021095,2]
[376482273,1753992663814,-472.0,0.00021095,2]
[376482274,1753992663823,-622.23,0.00021095,2]
[376482275,1753992663832,-906.16,0.00021095,2]
[376482276,1753992663842,-702.88,0.00021095,2]
[376482277,1753992663851,-2467.09,0.00021095,2]
[376482278,1753992663861,-750.5,0.00021095,2]
[376482279,1753992663870,-734.59,0.00021095,2]
[376482280,1753992663881,-5504.7,0.00021095,2]
[376482281,1753992663891,-460.0,0.00021095,2]
[376482282,1753992663901,-774.99,0.00021095,2]
[376482283,1753992663910,-923.43,0.00021095,2]
[376482284,1753992663920,-460.0,0.00021095,2]
[376482285,1753992663931,-868.05,0.00021095,2]
[376482286,1753992663941,-1469.6,0.00021095,2]
[376482287,1753992663951,-751.43,0.00021095,2]
[376482288,1753992663961,-460.0,0.00021095,2]
[376482289,1753992663971,-460.0,0.00021095,2]
[376482290,1753992663981,-460.0,0.00021095,2]
[376482291,1753992663990,-736.37,0.00021095,2]
[376482292,1753992664000,-1731.99,0.00021095,2]
[376482293,1753992664009,-460.0,0.00021095,2]
[376482294,1753992664018,-833.54,0.00021095,2]
[376482295,1753992664028,-865.22,0.00021095,2]
[376482297,1753992664038,-2612.28,0.00021095,2]
[376482298,1753992664047,-2405.18,0.00021095,2]
[376482299,1753992664057,-460.0,0.00021095,2]
[376482300,1753992664066,-1459.37,0.00021095,2]
[376482301,1753992664076,-1539.54,0.00021095,2]
[376482302,1753992664085,-460.0,0.00021095,2]
[376482303,1753992664094,-3444.98,0.00021095,2]
[376482304,1753992664103,-2412.48,0.00021095,2]
[376482305,1753992664113,-460.0,0.00021095,2]
[376482306,1753992664123,-3313.16,0.00021095,2]
[376482307,1753992664132,-460.0,0.00021095,2]
[376482308,1753992664142,-460.0,0.00021095,2]
[376482309,1753992664151,-460.0,0.00021095,2]
[376482310,1753992664160,-460.0,0.00021095,2]
[376482311,1753992664170,-460.0,0.00021095,2]
[376482312,1753992664179,-682.17,0.00021095,2]
[376482313,1753992664188,-539.31,0.00021095,2]
[376482314,1753992664197,-641.75,0.00021095,2]
[376482315,1753992664206,-743.96,0.00021095,2]
[376482316,1753992664216,-460.0,0.00021095,2]
[376482317,1753992664226,-2548.5,0.00021095,2]
[376482318,1753992664236,-748.55,0.00021095,2]
[376482319,1753992664246,-568.87503191,0.00021095,2]
[376482320,1753992664256,-954.79,0.00021095,2]
[376482321,1753992664266,-204.362749,0.00021095,2]
[376482322,1753992664276,-7913.01,0.00021095,2]
[376482323,1753992664285,-1147.33,0.00021095,2]
[376482324,1753992664295,-7531.09,0.00021095,2]
[376482325,1753992664304,-204.362749,0.00021095,2]
[376482326,1753992664314,-2692.51,0.00021095,2]
[376482327,1753992664324,-818.96,0.00021095,2]
[376482328,1753992664334,-562.28,0.00021095,2]
[376482329,1753992664343,-460.0,0.00021095,2]
[376482330,1753992664353,-3255.93,0.00021095,2]
[376482331,1753992664362,-460.0,0.00021095,2]
[376482332,1753992664371,-797.02,0.00021095,2]
[376482333,1753992664381,-808.48,0.00021095,2]
[376482334,1753992664391,-151.0,0.00021095,2]
[376482335,1753992664399,-844.99,0.00021095,2]
[376482336,1753992664409,-166.36705,0.00021095,2]
[376482337,1753992664419,-460.0,0.00021095,2]
[376482338,1753992664635,-793.26,0.00021095,2]
[376482339,1753992664645,-1355.93,0.00021095,2]
[376482340,1753992664654,-480.28,0.00021095,2]
[376482341,1753992664663,-1670.54,0.00021095,2]
[376482342,1753992664675,-460.0,0.00021095,2]
[376482343,1753992664684,-460.0,0.00021095,2]
[376482344,1753992664697,-471.86,0.00021095,2]
[376482345,1753992664706,-592.5,0.00021095,2]
[376482346,1753992664715,-460.0,0.00021095,2]
[376482347,1753992664724,-460.0,0.00021095,2]
[376482348,1753992664733,-1048.65,0.00021095,2]
[376482349,1753992664743,-921.2,0.00021095,2]
[376482350,1753992664752,-460.0,0.00021095,2]
[376482351,1753992664761,-3558.48,0.00021095,2]
[376482352,1753992664770,-553.37,0.00021095,2]
[376482353,1753992664779,-481.29,0.00021095,2]
[376482354,1753992664788,-484.2,0.00021095,2]
[376482355,1753992664798,-646.0,0.00021096,2]
[376482356,1753992664807,-155.9954627,0.00021096,2]
[376482357,1753992664816,-153.0,0.00021096,2]
[376482358,1753992664826,-700.0,0.00021099,2]
[376482359,1753992664835,-150.803326,0.000211,3]
[376482360,1753992664844,-3000.0,0.000211,2]
[376482361,1753992664853,-9711.88079616,0.00021107,4]
[376482362,1753992664862,-3000.0,0.0002111,2]
[376482363,1753992664872,-3000.0,0.0002112,2]
[376482364,1753992664883,-3000.0,0.0002113,2]
[376482365,1753992664892,-3000.0,0.0002114,2]
[376482366,1753992664901,-3000.0,0.0002115,2]
[376482367,1753992664911,-179.844671,0.0002115,2]
[376482368,1753992664923,-179.844671,0.0002115,2]
[376482369,1753992664932,-1096.7,0.00021154,3]
[376482370,1753992664941,-3000.0,0.0002116,2]
[376482371,1753992664950,-151.0,0.0002117,2]
[376482372,1753992664961,-151.0,0.0002117,2]
[376482373,1753992664971,-338.405847,0.0002117,2]
[376482374,1753992664980,-338.405847,0.0002117,2]
[376482375,1753992664990,-3000.0,0.0002117,2]
[376482376,1753992664999,-3000.0,0.0002118,2]
[376482377,1753992665008,-471.09238237,0.00021186,2]
[376482378,1753992665017,-3000.0,0.0002119,2]
[376482379,1753992665026,-660.0,0.000212,4]
[376482380,1753992665035,-3000.0,0.000212,2]
[376482381,1753992665045,-2347.99348631,0.0002121,2]
[376482382,1753992665059,-652.00651369,0.0002121,2]
[376482383,1753992665068,-3000.0,0.0002122,2]
[376482384,1753992665077,-3000.0,0.0002123,2]
[376482385,1753992665086,-3000.0,0.0002124,2]
[376482386,1753992665095,-150.803326,0.0002125,3]
[376482387,1753992665106,-3000.0,0.0002125,2]
[376482388,1753992665115,-3000.0,0.0002126,2]
[376482389,1753992665124,-1896.03946544,0.00021269,2]
[376482390,1753992665133,-3000.0,0.0002127,2]
[376482391,1753992665142,-400.0,0.00021273,2]
[376482392,1753992665151,-1261.292581,0.00021279,2]
[376482393,1753992665160,-204.362749,0.00021279,2]
[376482394,1753992665169,-204.362749,0.00021279,2]
[376482395,1753992665178,-151.0,0.00021279,2]
[376482396,1753992665187,-9711.88079616,0.00021279,5]
[376482397,1753992665196,-244.637201,0.0002128,2]
[376482398,1753992665205,-244.637201,0.0002128,2]
[376482399,1753992665215,-151.0,0.0002128,2]
[376482400,1753992665224,-3000.0,0.0002128,2]
[376482401,1753992665233,-151.0,0.0002128,2]
[376482402,1753992665242,-151.0,0.0002129,2]
[376482403,1753992665251,-151.0,0.0002129,2]
[376482404,1753992665261,-3000.0,0.0002129,2]
[376482405,1753992665270,-388.695195,0.000213,2]
[376482406,1753992665279,-388.695195,0.000213,2]
[376482407,1753992665289,-3000.0,0.000213,2]
[376482408,1753992665298,-3000.0,0.0002131,2]
[376482409,1753992665307,-150.803326,0.00021313,2]
[376482410,1753992665317,-3000.0,0.0002132,2]
[376482411,1753992665327,-3000.0,0.0002133,2]
[376482412,1753992665336,-3000.0,0.0002134,2]
[376482413,1753992665345,-1000.0,0.00021341,3]
[376482414,1753992665355,-3000.0,0.0002135,2]
[376482415,1753992665364,-5852.308336,0.0002136,2]
[376482416,1753992665374,-200.0,0.00021367,15]
[376482417,1753992665383,-200.0,0.00021367,15]
[376482418,1753992665393,-200.0,0.00021367,15]
[376482419,1753992665402,-200.0,0.00021367,15]
[376482420,1753992665411,-200.0,0.00021367,15]
[376482421,1753992665423,-200.0,0.00021367,15]
[376482422,1753992665432,-200.0,0.00021367,15]
[376482423,1753992665441,-200.0,0.00021367,15]
[376482424,1753992665451,-200.0,0.00021367,15]
[376482425,1753992665460,-200.0,0.00021367,15]
[376482426,1753992665470,-240.0,0.00021367,15]
[376482427,1753992665479,-151.0,0.00021369,2]
[376482428,1753992665488,-151.0,0.00021369,2]
[376482429,1753992665498,-151.0,0.00021369,2]
[376482430,1753992665507,-301.999999,0.00021369,2]
[376482431,1753992665517,-151.0,0.00021369,2]
[376482432,1753992665526,-151.0,0.00021369,2]
[376482433,1753992665535,-338.405847,0.00021369,2]
[376482434,1753992665544,-151.0,0.00021369,2]
[376482435,1753992665553,-338.405847,0.00021369,2]
[376482436,1753992665562,-151.0,0.00021369,2]
[376482437,1753992665571,-151.0,0.00021369,2]
[376482438,1753992665579,-151.0,0.00021369,2]
[376482439,1753992665588,-151.0,0.00021369,2]
[376482440,1753992665597,-1261.292581,0.00021369,2]
[376482441,1753992665606,-151.0,0.00021369,2]
[376482442,1753992665614,-518.28,0.00021369,2]
[376482443,1753992665624,-508.1,0.00021369,2]
[376482444,1753992665633,-231.009146,0.00021369,2]
[376482445,1753992665643,-151.0,0.00021369,2]
[376482446,1753992665652,-182.9097,0.00021369,2]
[376482447,1753992665661,-151.0,0.00021369,2]
[376482448,1753992665671,-151.0,0.00021369,2]
[376482449,1753992665681,-207.968851,0.00021369,2]
[376482450,1753992665691,-207.968851,0.00021369,2]
[376482451,1753992665700,-460.0,0.00021369,2]
[376482452,1753992665709,-834.81,0.00021369,2]
[376482453,1753992665719,-543.74,0.00021369,2]
[376482454,1753992665727,-460.0,0.00021369,2]
[376482455,1753992665737,-460.0,0.00021369,2]
[376482456,1753992665746,-640.74,0.00021369,2]
[376482457,1753992665755,-460.0,0.00021369,2]
[376482458,1753992665764,-478.96,0.00021369,2]
[376482459,1753992665773,-696.25,0.00021369,2]
[376482460,1753992665781,-513.77,0.00021369,2]
[376482461,1753992665790,-1007.37,0.00021369,2]
[376482462,1753992665799,-460.0,0.00021369,2]
[376482463,1753992665808,-543.8,0.00021369,2]
[376482464,1753992665817,-487.29,0.00021369,2]
[376482465,1753992665826,-151.0,0.00021369,2]
[376482466,1753992665835,-460.0,0.00021369,2]
[376482467,1753992665844,-460.0,0.00021369,2]
[376482468,1753992665853,-460.0,0.00021369,2]
[376482469,1753992665862,-179.844671,0.00021369,2]
[376482470,1753992665871,-460.0,0.00021369,2]
[376482471,1753992665883,-179.844671,0.00021369,2]
[376482472,1753992665892,-663.86,0.00021369,2]
[376482473,1753992665901,-151.0,0.00021369,2]
[376482474,1753992665911,-151.0,0.00021369,2]
[376482475,1753992665922,-460.0,0.00021369,2]
[376482476,1753992665932,-460.0,0.00021369,2]
[376482477,1753992665941,-484.16,0.00021369,2]
[376482478,1753992665950,-691.12,0.00021369,2]
[376482479,1753992665962,-491.0079628,0.00021369,2]
[376482480,1753992665972,-518.8,0.00021369,2]
[376482481,1753992665981,-460.0,0.00021369,2]
[376482482,1753992665990,-460.0,0.00021369,2]
[376482483,1753992666000,-511.93,0.00021369,2]
[376482484,1753992666009,-565.81,0.00021369,2]
[376482485,1753992666019,-460.0,0.00021369,2]
[376482486,1753992666027,-460.0,0.00021369,2]
[376482487,1753992666037,-460.0,0.00021369,2]
[376482488,1753992666046,-460.0,0.00021369,2]
[376482489,1753992666055,-633.78,0.00021369,2]
[376482490,1753992666064,-460.0,0.00021369,2]
[376482491,1753992666073,-460.0,0.00021369,2]
[376482492,1753992666082,-3242.99,0.00021369,2]
[376482493,1753992666091,-472.0,0.00021369,2]
[376482494,1753992666100,-622.23,0.00021369,2]
[376482495,1753992666109,-906.16,0.00021369,2]
[376482496,1753992666118,-702.88,0.00021369,2]
[376482497,1753992666127,-2467.09,0.00021369,2]
[376482498,1753992666137,-750.5,0.00021369,2]
[376482499,1753992666146,-734.59,0.00021369,2]
[376482500,1753992666155,-5504.7,0.00021369,2]
[376482501,1753992666164,-460.0,0.00021369,2]
[376482502,1753992666175,-774.99,0.00021369,2]
[376482503,1753992666184,-923.43,0.00021369,2]
[376482504,1753992666193,-460.0,0.00021369,2]
[376482505,1753992666202,-868.05,0.00021369,2]
[376482506,1753992666211,-1469.6,0.00021369,2]
[376482507,1753992666220,-751.43,0.00021369,2]
[376482508,1753992666229,-460.0,0.00021369,2]
[376482509,1753992666238,-460.0,0.00021369,2]
[376482510,1753992666248,-460.0,0.00021369,2]
[376482511,1753992666257,-736.37,0.00021369,2]
[376482512,1753992666266,-1731.99,0.00021369,2]
[376482513,1753992666275,-460.0,0.00021369,2]
[376482514,1753992666285,-833.54,0.00021369,2]
[376482515,1753992666294,-865.22,0.00021369,2]
[376482516,1753992666303,-2612.28,0.00021369,2]
[376482517,1753992666312,-2405.18,0.00021369,2]
[376482518,1753992666322,-1459.37,0.00021369,2]
[376482519,1753992666331,-460.0,0.00021369,2]
[376482520,1753992666341,-1539.54,0.00021369,2]
[376482521,1753992666350,-460.0,0.00021369,2]
[376482522,1753992666359,-3444.98,0.00021369,2]
[376482523,1753992666369,-2412.48,0.00021369,2]
[376482524,1753992666378,-460.0,0.00021369,2]
[376482525,1753992666388,-3313.16,0.00021369,2]
[376482526,1753992666397,-150.66888149,0.00021369,2]
[376482527,1753992666406,-460.0,0.00021369,2]
[376482528,1753992666416,-460.0,0.00021369,2]
[376482529,1753992666428,-460.0,0.00021369,2]
[376482530,1753992666438,-460.0,0.00021369,2]
[376482531,1753992666447,-682.17,0.00021369,2]
[376482532,1753992666457,-539.31,0.00021369,2]
[376482533,1753992666466,-641.75,0.00021369,2]
[376482534,1753992666476,-743.96,0.00021369,2]
[376482535,1753992666485,-460.0,0.00021369,2]
[376482536,1753992666495,-2548.5,0.00021369,2]
[376482537,1753992666504,-748.55,0.00021369,2]
[376482538,1753992666514,-954.79,0.00021369,2]
[376482539,1753992666523,-7913.01,0.00021369,2]
[376482540,1753992666532,-1147.33,0.00021369,2]
[376482541,1753992666542,-7531.09,0.00021369,2]
[376482542,1753992666551,-2692.51,0.00021369,2]
[376482543,1753992666560,-818.96,0.00021369,2]
[376482544,1753992666569,-562.28,0.00021369,2]
[376482545,1753992666579,-460.0,0.00021369,2]
[376482546,1753992666588,-3255.93,0.00021369,2]
[376482547,1753992666597,-460.0,0.00021369,2]
[376482548,1753992666607,-797.02,0.00021369,2]
[376482549,1753992666617,-808.48,0.00021369,2]
[376482550,1753992666626,-844.99,0.00021369,2]
[376482551,1753992666635,-460.0,0.00021369,2]
[376482552,1753992666645,-793.26,0.00021369,2]
[376482553,1753992666655,-1355.93,0.00021369,2]
[376482554,1753992666664,-480.28,0.00021369,2]
[376482555,1753992666680,-1670.54,0.00021369,2]
[376482556,1753992666690,-460.0,0.00021369,2]
[376482557,1753992666699,-460.0,0.00021369,2]
[376482558,1753992666709,-471.86,0.00021369,2]
[376482559,1753992666718,-592.5,0.00021369,2]
[376482560,1753992666727,-460.0,0.00021369,2]
[376482561,1753992666737,-460.0,0.00021369,2]
[376482562,1753992666746,-1048.65,0.00021369,2]
[376482563,1753992666755,-921.2,0.00021369,2]
[376482564,1753992666764,-460.0,0.00021369,2]
[376482565,1753992666774,-3558.48,0.00021369,2]
[376482566,1753992666783,-553.37,0.00021369,2]
[376482567,1753992666792,-481.29,0.00021369,2]
[376482568,1753992666802,-484.2,0.00021369,2]
[376482569,1753992666811,-646.0,0.0002137,2]
[376482570,1753992666820,-150.803326,0.000214,3]
[376482571,1753992666830,-204.362749,0.000214,2]
[376482572,1753992666839,-204.362749,0.000214,2]
[376482573,1753992666848,-151.0,0.000214,2]
[376482574,1753992666857,-2000.0,0.00021416,2]
[376482575,1753992666866,-1029.98771886,0.00021416,2]
[376482576,1753992666878,-2000.0,0.00021416,2]
[376482577,1753992666889,-2000.0,0.00021416,2]
[376482578,1753992666898,-151.0,0.00021421,2]
[376482579,1753992666908,-9711.88079616,0.00021452,5]
[376482580,1753992666918,-388.695195,0.00021452,2]
[376482581,1753992666931,-388.695195,0.00021452,2]
[376482582,1753992666941,-151.0,0.00021452,2]
[376482583,1753992666951,-1049.45,0.00021482,3]
[376482584,1753992666962,-312.16666667,0.000215,3]
[376482585,1753992667089,-360.0,0.00021541,2]
[376482586,1753992667099,-316.83617647,0.00021589,5]
[376482587,1753992667108,-4009.75602667,0.00021603,2]
[376482588,1753992667117,-800.0,0.00021616,2]
[376482589,1753992667126,-153.0,0.00021616,2]
[376482590,1753992667135,-244.637201,0.00021624,2]
[376482591,1753992667144,-244.637201,0.00021624,2]
[376482592,1753992667153,-179.422101,0.00021624,2]
[376482593,1753992667164,-9711.88079616,0.00021624,5]
[376482594,1753992667175,-151.0,0.00021643,2]
[376482595,1753992667184,-151.0,0.00021643,2]
[376482596,1753992667194,-151.0,0.00021643,2]
[376482597,1753992667203,-151.0,0.00021643,2]
[376482598,1753992667212,-338.405847,0.00021643,2]
[376482599,1753992667222,-151.0,0.00021643,2]
[376482600,1753992667231,-338.405847,0.00021643,2]
[376482601,1753992667240,-151.0,0.00021643,2]
[376482602,1753992667251,-151.0,0.00021643,2]
[376482603,1753992667261,-151.0,0.00021643,2]
[376482604,1753992667270,-151.0,0.00021643,2]
[376482605,1753992667280,-1261.292581,0.00021643,2]
[376482606,1753992667290,-151.0,0.00021643,2]
[376482607,1753992667299,-518.28,0.00021643,2]
[376482608,1753992667309,-508.1,0.00021643,2]
[376482609,1753992667319,-151.0,0.00021643,2]
[376482610,1753992667328,-151.0,0.00021643,2]
[376482611,1753992667337,-207.968851,0.00021643,2]
[376482612,1753992667346,-207.968851,0.00021643,2]
[376482613,1753992667355,-460.0,0.00021643,2]
[376482614,1753992667365,-834.81,0.00021643,2]